[Event "7th Sharjah Challengers 2024"]
[Site "Sharjah"]
[Date "2024.05.20"]
[Round "7.1"]
[White "Lashkin, Jegor"]
[Black "Nitish Belurkar"]
[Result "1/2-1/2"]
[ECO "D38"]
[WhiteElo "2449"]
[BlackElo "2451"]
[Annotator "ChessBase"]
[PlyCount "172"]
[EventDate "2024.05.13"]
[EventType "swiss"]
[EventCountry "UAE"]
[SourceTitle "playchess.com"]
[Source "ChessBase"]
[SourceQuality "1"]
[TimeControl "5400+30"]

1. d4 {[%emt 0:00:04]} Nf6 {[%emt 0:00:06]} 2. c4 {[%emt 0:00:07]} e6 {[%emt 0:00:02]} 3. Nf3 {[%emt 0:00:08]} d5 {[%emt 0:00:04]} 4. Nc3 {[%emt 0:00:06]} Nbd7 {[%emt 0:00:23]} 5. cxd5 {[%emt 0:00:26]} exd5 {[%emt 0:00:08]} 6. Bg5 {[%emt 0:00:04]} Bb4 {[%emt 0:02:38]} 7. e3 {[%emt 0:00:51]} c5 {[%emt 0:00:21]} 8. Qc2 {[%emt 0:01:41]} Qa5 {[%emt 0:00:29]} 9. Bd3 {[%emt 0:01:08]} c4 {[%emt 0:00:48]} 10. Bf5 {[%emt 0:00:19]} O-O {[%emt 0:00:06]} 11. O-O {[%emt 0:00:37]} Re8 {[%emt 0:00:08]} 12. Rfb1 {[%emt 0:04:31]} g6 {[%emt 0:16:28]} 13. Bxd7 {[%emt 0:03:08]} Nxd7 {[%emt 0:02:01]} 14. a3 {[%emt 0:00:01]} Bxc3 {[%emt 0:01:48]} 15. Qxc3 {[%emt 0:00:14]} Qxc3 {[%emt 0:02:37]} 16. bxc3 {[%emt 0:00:04]} b6 {[%emt 0:04:16]} 17. a4 {[%emt 0:01:26]} Bb7 {[%emt 0:17:57]} 18. Ne1 {[%emt 0:03:17]} a6 {[%emt 0:02:48]} 19. Bf4 {[%emt 0:06:42]} Re6 {[%emt 0:01:10]} 20. Nc2 {[%emt 0:03:52]} Rc8 {[%emt 0:02:03]} 21. h4 {[%emt 0:12:12]} h5 {[%emt 0:01:28]} 22. f3 {[%emt 0:01:33]} Ba8 {[%emt 0:04:05]} 23. Kf2 {[%emt 0:02:48]} Rce8 {[%emt 0:01:12]} 24. Ke2 {[%emt 0:08:30]} Kf8 {[%emt 0:00:52]} 25. Bg5 {[%emt 0:05:53]} Nb8 {[%emt 0:02:53]} 26. Nb4 {[%emt 0:03:24]} Bb7 {[%emt 0:01:07]} 27. Kf2 {[%emt 0:05:35]} Nd7 {[%emt 0:02:07]} 28. Re1 {[%emt 0:02:26]} Kg7 {[%emt 0:03:49]} 29. Bf4 {[%emt 0:05:54]} Kg8 {[%emt 0:00:26]} 30. Ke2 {[%emt 0:02:43]} Rf6 {[%emt 0:03:10]} 31. Kd2 {[%emt 0:00:18]} Rfe6 {[%emt 0:00:12]} 32. Re2 {[%emt 0:06:06]} Kf8 {[%emt 0:02:39]} 33. a5 {[%emt 0:05:05]} b5 {[%emt 0:00:15]} 34. Rae1 {[%emt 0:00:37]} Nf6 {[%emt 0:13:15]} 35. Bg5 {[%emt 0:01:27]} Nd7 {[%emt 0:00:12]} 36. e4 {[%emt 0:05:59]} dxe4 {[%emt 0:02:31]} 37. d5 {[%emt 0:00:45]} Re5 {[%emt 0:01:54]} 38. Bf4 {[%emt 0:02:20]} Rxd5+ {[%emt 0:01:16]} 39. Nxd5 {[%emt 0:00:06]} Bxd5 {[%emt 0:00:05]} 40. fxe4 {[%emt 0:00:23]} Bc6 {[%emt 0:01:57]} 41. Bd6+ {[%emt 0:00:17]} Kg8 {[%emt 0:00:13]} 42. e5 {[%emt 0:00:18]} Re6 {[%emt 0:00:01]} 43. Bb4 {[%emt 0:02:23]} Kg7 {[%emt 0:03:01]} 44. Kc2 {[%emt 0:00:22]} g5 {[%emt 0:02:27]} 45. hxg5 {[%emt 0:02:38]} Kg6 {[%emt 0:00:00]} 46. Rf2 {[%emt 0:02:05]} h4 {[%emt 0:01:04]} 47. Bd6 {[%emt 0:00:45]} Bd5 {[%emt 0:00:05]} 48. Rd2 {[%emt 0:00:42]} Bc6 {[%emt 0:00:08]} 49. Rf2 {[%emt 0:01:34]} Bd5 {[%emt 0:00:25]} 50. Rd1 {[%emt 0:00:50]} Be4+ {[%emt 0:00:06]} 51. Kb2 {[%emt 0:00:17]} Nxe5 {[%emt 0:00:52]} 52. Bxe5 {[%emt 0:00:06]} Rxe5 {[%emt 0:00:03]} 53. Rd6+ {[%emt 0:00:36]} Kg7 {[%emt 0:00:55]} 54. Rf4 {[%emt 0:00:25]} Bxg2 {[%emt 0:00:25]} 55. Rxh4 {[%emt 0:00:03]} Re2+ {[%emt 0:00:04]} 56. Ka3 {[%emt 0:00:36]} Rc2 {[%emt 0:00:05]} 57. Kb4 {[%emt 0:00:17]} Rb2+ {[%emt 0:00:04]} 58. Kc5 {[%emt 0:00:05]} b4 {[%emt 0:00:02]} 59. Rxc4 {[%emt 0:00:58]} bxc3 {[%emt 0:00:12]} 60. Rb6 {[%emt 0:00:43]} Ra2 {[%emt 0:00:04]} 61. Kb4 {[%emt 0:00:46]} c2 {[%emt 0:00:05]} 62. Rc5 {[%emt 0:01:17]} Be4 {[%emt 0:00:18]} 63. Rbc6 {[%emt 0:00:30]} Bxc6 {[%emt 0:00:37]} 64. Rxc6 {[%emt 0:00:01]} Rb2+ {[%emt 0:00:03]} 65. Ka4 {[%emt 0:00:19]} Kh7 {[%emt 0:00:29]} 66. Rh6+ {[%emt 0:01:04]} Kg8 {[%emt 0:00:05]} 67. Rc6 {[%emt 0:00:05]} Kg7 {[%emt 0:00:02]} 68. Ka3 {[%emt 0:00:38]} Rb5 {[%emt 0:00:01]} 69. Ka4 {[%emt 0:00:09]} Rxg5 {[%emt 0:00:05]} 70. Rxc2 {[%emt 0:00:02]} f5 {[%emt 0:00:07]} 71. Kb4 {[%emt 0:00:55]} f4 {[%emt 0:00:08]} 72. Rf2 {[%emt 0:00:22]} Rg4 {[%emt 0:00:19]} 73. Kc5 {[%emt 0:00:23]} Kh6 {[%emt 0:00:42]} 74. Kb6 {[%emt 0:00:33]} Rg6+ {[%emt 0:00:06]} 75. Kb7 {[%emt 0:00:04]} Rf6 {[%emt 0:01:03]} 76. Rxf4 {[%emt 0:00:15]} Rxf4 {[%emt 0:00:01]} 77. Kxa6 {[%emt 0:00:00]} Kg7 {[%emt 0:00:01]} 78. Kb7 {[%emt 0:00:16]} Rb4+ {[%emt 0:00:04]} 79. Kc7 {[%emt 0:01:42]} Ra4 {[%emt 0:00:03]} 80. Kb6 {[%emt 0:00:03]} Kf7 {[%emt 0:00:05]} 81. a6 {[%emt 0:00:03]} Ke7 {[%emt 0:00:00]} 82. a7 {[%emt 0:00:00]} Kd7 {[%emt 0:00:00]} 83. Kb7 {[%emt 0:00:00]} Rb4+ {[%emt 0:00:00]} 84. Ka8 {[%emt 0:00:55]} Rh4 {[%emt 0:00:00]} 85. Kb7 {[%emt 0:00:04]} Rb4+ {[%emt 0:00:04]} 86. Ka8 {[%emt 0:00:05]} Kc7 {[%emt 0:00:19]} 1/2-1/2

[Event "7th Sharjah Challengers 2024"]
[Site "Sharjah"]
[Date "2024.05.20"]
[Round "7.3"]
[White "Garifullina, Leya"]
[Black "Harsh Suresh"]
[Result "1/2-1/2"]
[ECO "C78"]
[WhiteElo "2431"]
[BlackElo "2417"]
[Annotator "ChessBase"]
[PlyCount "121"]
[EventDate "2024.05.13"]
[EventType "swiss"]
[EventCountry "UAE"]
[SourceTitle "playchess.com"]
[Source "ChessBase"]
[SourceQuality "1"]
[TimeControl "5400+30"]

1. e4 {[%emt 0:00:18]} e5 {[%emt 0:00:22]} 2. Nf3 {[%emt 0:00:08]} Nc6 {[%emt 0:00:15]} 3. Bb5 {[%emt 0:00:07]} a6 {[%emt 0:00:12]} 4. Ba4 {[%emt 0:00:07]} Nf6 {[%emt 0:00:11]} 5. O-O {[%emt 0:00:07]} b5 {[%emt 0:00:06]} 6. Bb3 {[%emt 0:00:04]} Bc5 {[%emt 0:00:05]} 7. a4 {[%emt 0:00:05]} Rb8 {[%emt 0:00:04]} 8. c3 {[%emt 0:00:04]} d6 {[%emt 0:00:04]} 9. d4 {[%emt 0:00:04]} Bb6 {[%emt 0:00:04]} 10. a5 {[%emt 0:00:04]} Ba7 {[%emt 0:00:04]} 11. h3 {[%emt 0:00:05]} Bb7 {[%emt 0:00:17]} 12. Be3 {[%emt 0:02:10]} Nxe4 {[%emt 0:01:26]} 13. Re1 {[%emt 0:00:57]} Ne7 {[%emt 0:00:22]} 14. Nbd2 {[%emt 0:01:44]} Nxd2 {[%emt 0:00:13]} 15. Bxd2 {[%emt 0:00:05]} O-O {[%emt 0:00:09]} 16. dxe5 {[%emt 0:00:04]} dxe5 {[%emt 0:00:05]} 17. Nxe5 {[%emt 0:00:06]} Ng6 {[%emt 0:00:05]} 18. Be3 {[%emt 0:02:46]} Nxe5 {[%emt 0:00:18]} 19. Qxd8 {[%emt 0:00:10]} Rbxd8 {[%emt 0:00:04]} 20. Bxa7 {[%emt 0:00:08]} Nd3 {[%emt 0:00:11]} 21. Re7 {[%emt 0:00:49]} Bd5 {[%emt 0:00:07]} 22. Bxd5 {[%emt 0:00:06]} Rxd5 {[%emt 0:00:05]} 23. Rxc7 {[%emt 0:00:08]} Nxb2 {[%emt 0:00:22]} 24. Bb6 {[%emt 0:00:03]} Nc4 {[%emt 0:09:40]} 25. Ra7 {[%emt 1:32:31]} h5 {[%emt 0:00:53]} 26. Rxa6 {[%emt 0:00:00]} Rd6 {[%emt 0:00:07]} 27. Rb1 {[%emt 0:00:00]} h4 {[%emt 0:01:18]} 28. Kh2 {[%emt 0:00:00]} Nd2 {[%emt 0:07:44]} 29. Re1 {[%emt 0:00:00]} Nc4 {[%emt 0:01:38]} 30. Re4 {[%emt 0:00:00]} Nxa5 {[%emt 0:02:03]} 31. Rxa5 {[%emt 0:00:00]} Rxb6 {[%emt 0:00:08]} 32. Rxh4 {[%emt 0:00:00]} Rc8 {[%emt 0:04:11]} 33. Rh5 {[%emt 0:00:00]} g6 {[%emt 0:01:18]} 34. Rhxb5 {[%emt 0:00:00]} Rxb5 {[%emt 0:00:05]} 35. Rxb5 {[%emt 0:00:00]} Rxc3 {[%emt 0:00:03]} 36. h4 {[%emt 0:00:00]} Rc2 {[%emt 0:04:25]} 37. Kg3 {[%emt 0:00:00]} Rc3+ {[%emt 0:01:01]} 38. f3 {[%emt 0:00:00]} Kg7 {[%emt 0:00:33]} 39. Rb7 {[%emt 0:00:00]} Ra3 {[%emt 0:01:03]} 40. Kg4 {[%emt 0:00:00]} Ra4+ {[%emt 0:00:32]} 41. f4 {[%emt 0:00:00]} Ra2 {[%emt 0:00:10]} 42. g3 {[%emt 0:00:00]} Ra3 {[%emt 0:00:20]} 43. Rb5 {[%emt 0:00:00]} f5+ {[%emt 0:01:30]} 44. Kh3 {[%emt 0:00:00]} Kh6 {[%emt 0:02:17]} 45. Rb8 {[%emt 0:00:00]} Ra1 {[%emt 0:01:17]} 46. Rb7 {[%emt 0:00:00]} Rh1+ {[%emt 0:00:14]} 47. Kg2 {[%emt 0:00:00]} Ra1 {[%emt 0:00:06]} 48. Rf7 {[%emt 0:00:00]} Ra2+ {[%emt 0:01:58]} 49. Kh3 {[%emt 0:00:00]} Ra1 {[%emt 0:00:06]} 50. Rc7 {[%emt 0:00:00]} Rh1+ {[%emt 0:02:01]} 51. Kg2 {[%emt 0:00:00]} Ra1 {[%emt 0:00:06]} 52. Rb7 {[%emt 0:00:00]} Rc1 {[%emt 0:00:52]} 53. Rf7 {[%emt 0:00:00]} Rc2+ {[%emt 0:02:22]} 54. Kh3 {[%emt 0:00:00]} Rc1 {[%emt 0:00:06]} 55. h5 {[%emt 0:00:00]} Rh1+ {[%emt 0:01:53]} 56. Kg2 {[%emt 0:00:00]} Rxh5 {[%emt 0:00:36]} 57. Ra7 {[%emt 0:00:00]} g5 {[%emt 0:00:06]} 58. Ra6+ {[%emt 0:00:00]} Kg7 {[%emt 0:00:06]} 59. fxg5 {[%emt 0:00:00]} Rxg5 {[%emt 0:00:05]} 60. Kf3 {[%emt 0:00:00]} Rg4 {[%emt 0:00:05]} 61. Rb6 {[%emt 0:18:00]} 1/2-1/2

[Event "7th Sharjah Challengers 2024"]
[Site "Sharjah"]
[Date "2024.05.20"]
[Round "7.4"]
[White "Delgado Ramirez, Neuris"]
[Black "Aradhya, Garg"]
[Result "1/2-1/2"]
[ECO "C77"]
[WhiteElo "2489"]
[BlackElo "2388"]
[Annotator "TA"]
[PlyCount "121"]
[EventDate "2024.05.13"]
[EventType "swiss"]
[EventCountry "UAE"]
[SourceTitle "playchess.com"]
[Source "ChessBase"]
[SourceQuality "1"]
[TimeControl "5400+30"]

{[%evp 41,121,-46,-50,-72,-57,-64,-53,-45,-35,-57,-63,-74,-58,-67,-81,-117,-60,-151,-121,-122,-104,-110,-62,-103,-112,-106,-115,-111,-96,-116,-114,-130,0,0,0,0,0,0,0,-46,0,0,12,14,14,10,11,8,8,6,8,7,6,7,6,8,8,8,166,149,129,152,271,0,0,-1647,-1728,-4133,-2019,-29973,-29974,-29974,-29968,-29975,-29971,-12820,0,0,0,-29995,0,0]} 1. e4 {[%emt 0:00:36]} e5 {[%emt 0:00:02]} 2. Nf3 {[%emt 0:00:09]} Nc6 {[%emt 0:00:02]} 3. Bb5 {[%emt 0:00:50]} a6 {[%emt 0:00:03]} 4. Ba4 {[%emt 0:00:13]} Nf6 {[%emt 0:00:03]} 5. d3 {[%emt 0:00:09]} Bc5 {[%emt 0:00:27]} 6. Bxc6 {[%emt 0:02:57]} dxc6 {[%emt 0:00:09]} 7. Nbd2 {[%emt 0:00:49]} Be6 {[%emt 0:02:35]} 8. Nb3 {[%emt 0:02:20]} Bd6 {[%emt 0:02:12]} 9. O-O {[%emt 0:00:11]} Qe7 {[%emt 0:06:50]} 10. Be3 {[%emt 0:06:00]} a5 {[%emt 0:12:41]} 11. Qe1 {[%emt 0:12:24]} Bg4 {[%emt 0:11:38]} 12. Nbd2 {[%emt 0:04:58]} a4 {[%emt 0:01:30]} 13. a3 {[%emt 0:03:50]} Nd7 {[%emt 0:01:49]} 14. h3 {[%emt 0:02:19]} Bh5 {[%emt 0:00:08]} 15. d4 {[%emt 0:00:09]} exd4 {[%emt 0:14:28]} 16. Bxd4 {[%emt 0:13:24]} O-O {[%emt 0:05:12]} 17. Qe3 {[%emt 0:04:41]} Rfe8 {[%emt 0:02:43]} 18. Rfe1 {[%emt 0:00:24]} f6 {[%emt 0:08:12]} 19. Nc4 {[%emt 0:05:53]} Bc5 {[%emt 0:02:32]} 20. Nh4 {[%emt 0:02:03]} Qe6 {[%emt 0:03:05]} 21. Qc3 {[%emt 0:04:17]} Bf8 {[%emt 0:00:30]} 22. f4 {[%emt 0:00:57]} c5 {[%emt 0:04:53]} 23. Bf2 {[%emt 0:00:27]} Bf7 {[%emt 0:00:06]} 24. Nd2 {[%emt 0:00:11]} Rad8 {[%emt 0:00:40]} 25. Nhf3 {[%emt 0:03:06]} b5 {[%emt 0:04:06]} 26. e5 {[%emt 0:06:07]} fxe5 {[%emt 0:02:47]} 27. Nxe5 {[%emt 0:02:47]} Nxe5 {[%emt 0:03:08]} 28. Rxe5 {[%emt 0:01:20]} Qf6 {[%emt 0:00:48]} (28... b4 $1 $17 {[%cal Rb4c3]} 29. Qg3 Qb6) 29. Qe3 {[%emt 0:06:47]} ({White should play} 29. Rxe8 $1 $15 Rxe8 30. Qxf6 gxf6 31. Re1 Rxe1+ 32. Bxe1) 29... Rxe5 {[%emt 0:00:29]} 30. fxe5 {[%emt 0:00:03]} Qf5 {[%emt 0:00:24]} 31. Rc1 {[%emt 0:03:40]} Be7 {[%emt 0:02:23]} ({Black should try} 31... Bd5 $17 32. c4 Bb7 (32... bxc4 33. Nxc4 Be6 34. Qf3 $17)) 32. Nf3 $1 $15 {[%emt 0:00:26]} Bd5 {[%emt 0:00:45]} 33. Bh4 {[%emt 0:00:58]} Bxh4 {[%emt 0:00:32]} 34. Nxh4 {[%emt 0:00:04]} Qe4 {[%emt 0:00:06]} 35. Qg5 {[%emt 0:01:20]} Re8 {[%emt 0:00:33]} 36. Nf3 {[%emt 0:00:43]} Qg6 {[%emt 0:01:34]} (36... Qe2 $17 {[%cal Oh7h6] And now ...h6! would win.} 37. Re1 Qxc2) 37. Qxg6 $11 {[%emt 0:01:44]} hxg6 {[%emt 0:00:02]} 38. Re1 {[%emt 0:00:51]} Bxf3 {[%emt 0:01:03]} 39. gxf3 {[%emt 0:00:12]} Kf7 {[%emt 0:00:01]} 40. Kf2 {[%emt 0:01:41]} (40. f4 $11 {might be stronger.}) 40... Ke6 {[%emt 0:00:30]} (40... g5 $15) 41. f4 $11 {[%emt 0:01:00]} Kf5 {[%emt 0:02:11]} 42. Kf3 {[%emt 0:00:15]} Rh8 {[%emt 0:01:40]} 43. Kg3 {[%emt 0:00:42]} g5 {[%emt 0:00:55]} 44. fxg5 {[%emt 0:00:20]} Kxg5 {[%emt 0:00:01]} 45. Rd1 {[%emt 0:00:10]} (45. e6 Kf5 $15) 45... c6 {[%emt 0:01:17]} 46. Rd6 {[%emt 0:01:16]} Rc8 {[%emt 0:01:46]} 47. Rd7 {[%emt 0:02:25]} Kf5 {[%emt 0:00:06]} 48. Rxg7 {[%emt 0:00:11]} Kxe5 {[%emt 0:00:38]} 49. h4 {[%emt 0:00:51]} b4 $2 {[%emt 0:01:31]} (49... Kf6 $11 {and Black is okay.} 50. Rh7 Rg8+ 51. Kh3 Rg1) 50. Rg5+ $18 {[%emt 0:01:16]} Kd4 {[%emt 0:01:27]} 51. Rg4+ {[%emt 0:00:09]} Ke3 {[%emt 0:00:06]} (51... Ke5 $16 52. axb4 Rb8) 52. h5 $2 {[%emt 0:01:12]} (52. axb4 $18 cxb4 53. Rxb4) 52... Kd2 $11 {[%emt 0:00:11]} 53. Rc4 $2 {[%emt 0:00:31][%mdl 8192] [#]} (53. axb4 $11 cxb4 54. Rxb4) 53... Kc1 $1 $19 {[%emt 0:00:20]} 54. axb4 {[%emt 0:03:51]} Kxb2 {[%emt 0:00:24]} 55. Rxc5 {[%emt 0:00:03]} a3 {[%emt 0:01:10]} 56. Ra5 {[%emt 0:00:02]} a2 {[%emt 0:00:15]} (56... Kxc2 57. Rxa3 Rh8 58. Kh4 $18) 57. c4 {[%emt 0:00:04]} Rb8 {[%emt 0:00:38]} (57... a1=B 58. Rc5 $11) 58. b5 {[%emt 0:00:12]} cxb5 $2 {[%emt 0:00:24]} ({Inferior is} 58... a1=B 59. bxc6 Rc8 60. Ra6 $16) ({Weaker is} 58... a1=Q 59. Rxa1 Kxa1 60. bxc6 $11) (58... c5 $19 59. Kf4 a1=Q (59... a1=B 60. b6 $16) (59... a1=R 60. Rxa1 Kxa1 61. Ke5 $19) 60. Rxa1 Kxa1) 59. cxb5 $11 {[%emt 0:00:07]} a1=Q {[%emt 0:03:19]} 60. Ra4 $2 {[%emt 0:03:53][%mdl 8192] [#]} (60. Rxa1 $11 Kxa1 61. Kg4) 60... Qa2 $2 (60... Qxa4 $3 {mates} 61. b6 (61. h6 Rd8) 61... Rd8 (61... Rxb6 {is a self mate.} 62. Kg2 Rb3 63. h6 Qf4 64. Kg1 Rg3+ 65. Kh2 Qh4#) 62. Kh2 Qf4+ 63. Kh1 Rg8 64. b7 Qh4#) 61. Rxa2+ {[%emt 0:00:00]} 1/2-1/2

[Event "7th Sharjah Challengers 2024"]
[Site "Sharjah"]
[Date "2024.05.20"]
[Round "7.5"]
[White "Burmakin, Vladimir"]
[Black "Al Qudaimi, Basheer"]
[Result "1-0"]
[ECO "A80"]
[WhiteElo "2483"]
[BlackElo "2375"]
[Annotator "TA"]
[PlyCount "129"]
[EventDate "2024.05.13"]
[EventType "swiss"]
[EventCountry "UAE"]
[SourceTitle "playchess.com"]
[Source "ChessBase"]
[SourceQuality "1"]
[TimeControl "5400+30"]

{[%evp 41,129,152,177,146,155,152,172,164,172,170,175,159,215,156,178,144,153,98,150,155,289,198,203,185,175,150,259,140,144,135,151,145,241,250,246,250,253,241,290,304,314,307,308,323,326,318,312,317,300,289,326,327,330,323,360,350,422,404,570,580,593,566,589,600,1135,1112,905,894,1400,1408,1352,1323,29968,1183,29972,29974,29972,29974,29973,29975,29975,29976,29976,29977,29977,29978,29978,29979,29979,29980]} 1. d4 {[%emt 0:00:04]} b6 {[%emt 0:00:29]} 2. Bf4 {[%emt 0:00:39]} Bb7 {[%emt 0:00:14]} 3. e3 {[%emt 0:00:08]} e6 {[%emt 0:01:23]} 4. Nf3 {[%emt 0:00:42]} f5 {[%emt 0:04:05]} 5. Be2 {[%emt 0:04:00]} Nf6 {[%emt 0:00:58]} 6. O-O {[%emt 0:00:13] A80: Dutch Defence: Unusual White second moves.} Be7 {[%emt 0:00:30]} 7. c4 {[%emt 0:00:09]} O-O {[%emt 0:03:06]} 8. Nc3 {[%emt 0:00:07]} Ne4 {[%emt 0:03:29]} 9. Nxe4 {[%emt 0:02:50]} Bxe4 {[%emt 0:05:03] was the old line (9...fxe4).} 10. h3 {[%emt 0:10:55]} d6 {[%emt 0:05:59]} 11. Nd2 {[%emt 0:01:57]} Bb7 {[%emt 0:05:55]} 12. Bf3 {[%emt 0:01:26]} Qc8 {[%emt 0:04:36]} 13. Bh2 {[%emt 0:03:03]} Nd7 {[%emt 0:01:09]} 14. e4 $146 {[%emt 0:08:47]} ({Predecessor:} 14. b4 c5 15. bxc5 dxc5 16. Rc1 Rd8 17. Qb3 Nf6 18. Bxb7 Qxb7 19. Nf3 Ne4 20. Rfd1 {1-0 Mazetto,S (2154)-Hille,W (1864) Florianopolis op 4th 2018 (7)}) 14... Bf6 {[%emt 0:08:25]} 15. exf5 {[%emt 0:00:29]} Bxf3 {[%emt 0:13:17]} 16. Nxf3 {[%emt 0:02:13]} exf5 {[%emt 0:01:52]} 17. Qd3 {[%emt 0:01:51]} Kh8 {[%emt 0:00:43]} 18. Rae1 {[%emt 0:00:49]} a5 {[%emt 0:09:26]} 19. Re2 {[%emt 0:05:21]} a4 {[%emt 0:01:17]} 20. Rfe1 {[%emt 0:04:45]} Ra5 {[%emt 0:00:39]} 21. Bf4 {[%emt 0:01:45]} h6 {[%emt 0:05:34]} 22. Bd2 {[%emt 0:04:40]} Ra8 {[%emt 0:00:06]} 23. Bc3 {[%emt 0:22:37]} (23. Qxf5 $6 Ne5 24. Qh5 Nxf3+ 25. gxf3 (25. Qxf3 Bxd4 26. Qe4 Bxb2 $11) 25... Qd7 $14) 23... Rb8 {[%emt 0:07:30]} 24. Re6 {[%emt 0:01:05]} (24. Qxf5 $6 Ne5 25. Qe4 Nxf3+ 26. Qxf3 Bxd4 $14) 24... Rf7 {[%emt 0:02:32]} 25. Qxf5 {[%emt 0:01:33]} Nf8 {[%emt 0:00:15]} 26. Qh5 $1 {[%emt 0:00:30]} Qd7 {[%emt 0:01:36]} (26... Nxe6 $16 27. Qxf7 Nf8) 27. R6e3 {[%emt 0:01:07]} b5 {[%emt 0:00:09]} 28. cxb5 {[%emt 0:02:23]} Rxb5 {[%emt 0:00:02]} 29. Qg4 {[%emt 0:00:03]} ({White should play} 29. d5 {Black must now prevent Bxf6.} Bxc3 30. bxc3) 29... Qc6 {[%emt 0:03:22]} ({Black should try} 29... Qxg4 30. hxg4 Kh7) 30. Re8 {[%emt 0:02:59]} a3 {[%emt 0:01:07]} (30... Kh7 $16 31. a3 Nd7) 31. Qe6 {[%emt 0:00:41]} Qd5 {[%emt 0:01:44]} 32. Qxd5 {[%emt 0:00:45]} Rxd5 {[%emt 0:00:01]} 33. bxa3 {[%emt 0:00:18]} c5 {[%emt 0:00:36] [#]} (33... Kh7 $16 {was called for.} 34. Rb1 c5) 34. Rd1 {[%emt 0:00:18]} (34. Ne5 $1 $18 {[%cal Re5f7]} dxe5 35. dxe5) 34... Kh7 $16 {[%emt 0:00:43]} 35. Rd2 {[%emt 0:00:13]} Rf5 {[%emt 0:02:47]} 36. Re3 {[%emt 0:00:54]} c4 {[%emt 0:00:45] [#]} (36... Ng6 $16 37. dxc5 Bxc3 38. Rxc3 Rxc5) 37. Bb4 $1 $18 {[%emt 0:03:09]} d5 {[%emt 0:00:55]} 38. g4 {[%emt 0:00:02]} Rf4 {[%emt 0:00:02]} 39. Bd6 {[%emt 0:00:04]} Re4 {[%emt 0:00:02]} 40. Rxe4 {[%emt 0:00:29]} dxe4 {[%emt 0:00:01]} 41. Ne5 {[%emt 0:00:09]} c3 {[%emt 0:05:20]} 42. Rc2 {[%emt 0:00:28]} (42. Nxf7 $2 {is the wrong capture.} cxd2 43. Kg2 d1=Q $19 (43... d1=B 44. Bxf8 Kg8 45. Bxg7 $15)) 42... Ne6 {[%emt 0:00:23]} 43. Nxf7 {[%emt 0:02:08]} Nxd4 {[%emt 0:00:01]} 44. Rxc3 {[%emt 0:00:36]} (44. Ng5+ hxg5 45. Rxc3 Ne2+ 46. Kg2 Nxc3 $19 (46... Bxc3 $2 47. Bc7 $19)) 44... Ne2+ {[%emt 0:00:01]} 45. Kf1 {[%emt 0:01:30]} Nxc3 {[%emt 0:00:02]} 46. Bc5 {[%emt 0:00:09]} Kg6 {[%emt 0:02:46]} 47. Nd6 {[%emt 0:00:05]} Be5 {[%emt 0:00:50]} 48. Bb4 {[%emt 0:00:36]} Nxa2 {[%emt 0:01:11]} 49. Nxe4 {[%emt 0:00:15]} Nc1 {[%emt 0:00:04]} (49... Nxb4 {was worth a try.} 50. axb4 Kf7) 50. a4 $18 {[%emt 0:00:58]} Nd3 {[%emt 0:00:15]} 51. Bd2 {[%emt 0:00:20]} Bd4 {[%emt 0:01:19]} 52. a5 {[%emt 0:00:40]} Ne5 {[%emt 0:00:14]} 53. Bc3 {[%emt 0:02:11]} Nc6 {[%emt 0:01:02]} 54. Bxd4 {[%emt 0:00:13]} Nxd4 {[%emt 0:00:02]} 55. a6 {[%emt 0:00:10]} Nc6 {[%emt 0:02:06]} 56. f4 {[%emt 0:00:48]} Kf7 {[%emt 0:00:00]} 57. Nc3 {[%emt 0:00:26]} (57. Nd6+ $142 Ke7 58. Nc8+ Kf6 59. Ke2 Kf7 60. a7 Nxa7 61. Nxa7 Kg6 62. Ke3) 57... Ke6 {[%emt 0:00:00]} 58. Nb5 {[%emt 0:00:19]} Kd5 {[%emt 0:01:30]} 59. a7 {[%emt 0:00:17]} Nxa7 {[%emt 0:00:00]} 60. Nxa7 {[%emt 0:00:09]} Ke4 {[%emt 0:00:00]} 61. Kg2 {[%emt 0:00:20]} Kxf4 {[%emt 0:00:00]} 62. Nc6 {[%emt 0:00:35]} h5 {[%emt 0:00:00]} 63. gxh5 {[%emt 0:00:08]} Kg5 {[%emt 0:00:00]} 64. Kg3 {[%emt 0:00:11]} Kxh5 {[%emt 0:00:00]} 65. Nd4 {[%emt 0:00:14]} 1-0

[Event "7th Sharjah Challengers 2024"]
[Site "Sharjah"]
[Date "2024.05.20"]
[Round "7.6"]
[White "Ajay Santhosh Parvathareddy"]
[Black "Ahmad, Al Khatib"]
[Result "1-0"]
[ECO "D50"]
[WhiteElo "2177"]
[BlackElo "2380"]
[Annotator "ChessBase"]
[PlyCount "85"]
[EventDate "2024.05.13"]
[EventType "swiss"]
[EventCountry "UAE"]
[SourceTitle "playchess.com"]
[Source "ChessBase"]
[SourceQuality "1"]
[TimeControl "5400+30"]

1. d4 {[%emt 0:00:01]} Nf6 {[%emt 0:00:09]} 2. c4 {[%emt 0:00:04]} e6 {[%emt 0:00:07]} 3. Nf3 {[%emt 0:00:03]} c5 {[%emt 0:00:09]} 4. Nc3 {[%emt 0:01:20]} d5 {[%emt 0:04:04]} 5. cxd5 {[%emt 0:00:09]} cxd4 {[%emt 0:02:17]} 6. Qxd4 {[%emt 0:00:36]} exd5 {[%emt 0:00:18]} 7. Bg5 {[%emt 0:00:06]} Be7 {[%emt 0:00:53]} 8. e3 {[%emt 0:00:06]} O-O {[%emt 0:01:55]} 9. Be2 {[%emt 0:15:08]} Nc6 {[%emt 0:00:53]} 10. Qd1 {[%emt 0:00:31]} Be6 {[%emt 0:06:21]} 11. O-O {[%emt 0:00:32]} h6 {[%emt 0:02:54]} 12. Bh4 {[%emt 0:00:53]} Qb6 {[%emt 0:02:52]} 13. Nb5 {[%emt 0:00:36]} Rac8 {[%emt 0:07:58]} 14. Nbd4 {[%emt 0:06:15]} g5 {[%emt 0:00:53]} 15. Bg3 {[%emt 0:00:16]} Ne4 {[%emt 0:01:46]} 16. Bd3 {[%emt 0:00:55]} Bf6 {[%emt 0:22:14]} 17. Nxe6 {[%emt 0:11:40]} fxe6 {[%emt 0:00:10]} 18. Bxe4 {[%emt 0:00:04]} dxe4 {[%emt 0:00:15]} 19. Nd2 {[%emt 0:00:06]} Rcd8 {[%emt 0:01:27]} 20. Qe1 {[%emt 0:01:11]} Qxb2 {[%emt 0:03:10]} 21. Nb3 {[%emt 0:00:03]} b6 {[%emt 0:06:04]} 22. Qc1 {[%emt 0:05:37]} Qxc1 {[%emt 0:06:34]} 23. Raxc1 {[%emt 0:00:07]} Nb4 {[%emt 0:01:39]} 24. a3 {[%emt 0:00:45]} Rd3 {[%emt 0:05:32]} 25. axb4 {[%emt 0:06:23]} Rxb3 {[%emt 0:00:09]} 26. Rc4 {[%emt 0:00:04]} Rd8 {[%emt 0:10:59]} 27. Rxe4 {[%emt 0:00:54]} Kf7 {[%emt 0:00:35]} 28. h3 {[%emt 0:02:08]} Rbd3 {[%emt 0:04:31]} 29. Rc4 {[%emt 0:01:09]} R8d7 {[%emt 0:00:42]} 30. Kh2 {[%emt 0:00:46]} b5 {[%emt 0:04:33]} 31. Rc5 {[%emt 0:00:34]} R3d5 {[%emt 0:00:37]} 32. Rc6 {[%emt 0:06:23]} Be7 {[%emt 0:02:11]} 33. f4 {[%emt 0:00:11]} g4 {[%emt 0:01:36]} 34. hxg4 {[%emt 0:00:22]} Bxb4 {[%emt 0:00:09]} 35. f5 {[%emt 0:00:14]} exf5 {[%emt 0:00:18]} 36. e4 {[%emt 0:00:04]} Rd1 {[%emt 0:01:04]} 37. Rxd1 {[%emt 0:01:44]} Rxd1 {[%emt 0:00:04]} 38. gxf5 {[%emt 0:00:05]} a5 {[%emt 0:00:55]} 39. Rb6 {[%emt 0:07:11]} Rf1 {[%emt 0:00:30]} 40. Rxb5 {[%emt 0:00:19]} Kf6 {[%emt 0:00:31]} 41. Rb6+ {[%emt 0:00:39]} Kg5 {[%emt 0:00:01]} 42. Rg6+ {[%emt 0:00:13]} Kh5 {[%emt 0:00:00]} 43. Be5 {[%emt 0:00:23]} 1-0